bitfinex/quotes_BTCUSD_20241004
["timestamp","ask_amount","ask_price","bid_price","bid_amount"]
[1728035288364,0.284596,61502.0,61501.0,0.173419]
[1728035288605,0.184596,61502.0,61501.0,0.173419]
[1728035289152,0.184596,61502.0,61501.0,0.081819]
[1728035289376,0.173596,61502.0,61501.0,0.080819]
[1728035289608,0.178596,61502.0,61501.0,0.080819]
[1728035289841,0.39154174,61502.0,61501.0,0.080819]
[1728035290282,0.39554174,61502.0,61501.0,0.080819]
[1728035291012,0.39054174,61502.0,61501.0,0.080819]
[1728035291224,0.39254174,61502.0,61501.0,0.080819]
[1728035291917,0.39754174,61502.0,61501.0,0.000819]
[1728035292139,0.49498038,61502.0,61501.0,0.000819]
[1728035292370,0.49498382,61502.0,61501.0,0.000819]
[1728035292582,0.52048066,61502.0,61501.0,0.000819]
[1728035294951,0.52049696,61502.0,61501.0,0.000819]
[1728035295180,0.52049695,61502.0,61501.0,0.000819]
[1728035295406,0.42303858,61502.0,61501.0,0.000819]
[1728035295632,0.52049508,61502.0,61501.0,0.000819]
[1728035296102,0.42303858,61502.0,61501.0,0.000819]
[1728035296352,0.5204946,61502.0,61501.0,0.000819]
[1728035297320,0.67594135,61502.0,61501.0,0.000819]
[1728035297571,0.38979284,61502.0,61501.0,0.000819]
[1728035297809,0.51373858,61502.0,61501.0,0.000819]
[1728035300773,0.29909284,61502.0,61501.0,0.000819]
[1728035300994,0.51935947,61502.0,61501.0,0.000819]
[1728035303660,0.68254618,61502.0,61501.0,0.000819]
[1728035303871,0.56072845,61502.0,61501.0,0.000819]
[1728035305202,0.42303919,61502.0,61501.0,0.000819]
[1728035305417,0.64815891,61502.0,61501.0,0.000819]
[1728035305629,0.59783919,61502.0,61501.0,0.000819]
[1728035305847,0.47389345,61502.0,61501.0,0.000819]
[1728035306067,0.59783919,61502.0,61501.0,0.000819]
[1728035307168,0.59783919,61502.0,61501.0,0.077719]
[1728035307169,0.46228016,61502.0,61501.0,0.077719]
[1728035307402,0.42303919,61502.0,61501.0,0.077719]
[1728035307624,0.52050596,61502.0,61501.0,0.077719]
[1728035307864,0.42303919,61502.0,61501.0,0.077719]
[1728035308072,0.39754174,61502.0,61501.0,0.077719]
[1728035308606,0.39054174,61502.0,61501.0,0.077719]
[1728035309091,0.38654174,61502.0,61501.0,0.077719]
[1728035309347,0.39054174,61502.0,61501.0,0.077719]
[1728035309839,0.38654174,61502.0,61501.0,0.077719]
[1728035310085,0.38654174,61502.0,61501.0,0.079719]
[1728035311234,0.38654174,61502.0,61501.0,0.080719]
[1728035311508,0.262596,61502.0,61501.0,0.079719]
[1728035311783,0.162596,61502.0,61501.0,0.079719]
[1728035312023,0.162596,61502.0,61501.0,0.081719]
[1728035312270,0.162596,61502.0,61501.0,0.09860811]
[1728035312488,0.162596,61502.0,61501.0,0.081719]
[1728035312732,0.18809017,61502.0,61501.0,0.081719]
[1728035316642,0.18809017,61502.0,61501.0,0.18978433]
[1728035317138,0.18809017,61502.0,61501.0,0.172919]
[1728035317860,0.18809017,61502.0,61501.0,0.02168433]
[1728035317861,0.451337,61502.0,61501.0,0.02168433]
[1728035318105,0.59911434,61502.0,61501.0,0.02168433]
[1728035318338,0.59911434,61502.0,61495.0,0.000819]
[1728035318339,0.262612,61496.0,61495.0,0.000819]
[1728035318842,0.451353,61496.0,61495.0,0.000819]
[1728035319064,0.451353,61496.0,61495.0,0.01231799]
[1728035319321,0.451353,61496.0,61495.0,0.000819]
[1728035320927,0.459353,61496.0,61495.0,0.001819]
[1728035321138,0.48485193,61496.0,61495.0,0.001819]
[1728035321344,0.49185193,61496.0,61495.0,0.001819]
[1728035322008,0.48485193,61496.0,61495.0,0.001819]
[1728035322480,0.49185193,61496.0,61495.0,0.001819]
[1728035322909,0.48385193,61496.0,61495.0,0.000819]
[1728035323349,0.49185193,61496.0,61495.0,0.001819]
[1728035323989,0.48385193,61496.0,61495.0,0.000819]
[1728035324443,0.47685193,61496.0,61495.0,0.000819]
[1728035324649,0.49285193,61496.0,61495.0,0.001819]
[1728035324862,0.48385193,61496.0,61495.0,0.000819]
[1728035325308,0.47685193,61496.0,61495.0,0.000819]
[1728035325515,0.48385193,61496.0,61495.0,0.000819]
[1728035326240,0.48385193,61496.0,61495.0,0.080119]
[1728035326241,0.19511093,61496.0,61495.0,0.080119]
[1728035326682,0.20411093,61496.0,61495.0,0.081119]
[1728035326895,0.19511093,61496.0,61495.0,0.080119]
[1728035327377,0.20211093,61496.0,61495.0,0.080119]
[1728035327612,0.19511093,61496.0,61495.0,0.080119]
[1728035327851,0.18811093,61496.0,61495.0,0.080119]
[1728035328071,0.19511093,61496.0,61495.0,0.080119]
[1728035328530,0.18811093,61496.0,61495.0,0.080119]
[1728035329275,0.162612,61496.0,61495.0,0.080119]
[1728035330198,0.162612,61496.0,61495.0,0.083119]
[1728035330449,0.162612,61496.0,61495.0,0.080119]
[1728035330898,0.162612,61496.0,61495.0,0.083119]
[1728035331124,0.162612,61496.0,61495.0,0.080119]
[1728035331342,0.162612,61496.0,61495.0,0.083119]
[1728035331775,0.162612,61496.0,61495.0,0.080119]
[1728035332235,0.163612,61496.0,61495.0,0.080119]
[1728035332474,0.18910839,61496.0,61495.0,0.080119]
[1728035333174,0.18910839,61496.0,61495.0,0.369133]
[1728035333175,0.02649639,61496.0,61495.0,0.369133]
[1728035333395,0.02649639,61496.0,61495.0,0.365133]
[1728035333396,0.02549639,61496.0,61495.0,0.365133]
[1728035333615,0.02549639,61496.0,61495.0,0.37477777]
[1728035333870,0.02649639,61496.0,61495.0,0.37977777]
[1728035334083,0.02549639,61496.0,61495.0,0.37477777]
[1728035334527,0.02649639,61496.0,61495.0,0.38277777]
[1728035334760,0.02549639,61496.0,61495.0,0.37477777]
[1728035335021,0.02649639,61496.0,61495.0,0.38277777]
[1728035335249,0.02749639,61496.0,61495.0,0.38677777]
[1728035335711,0.02649639,61496.0,61495.0,0.38277777]
[1728035335922,0.02749639,61496.0,61495.0,0.38677777]
[1728035336139,0.02749639,61496.0,61495.0,0.377133]
[1728035336359,0.02649639,61496.0,61495.0,0.369133]
[1728035336581,0.02749639,61496.0,61495.0,0.377133]
[1728035337533,0.02649639,61496.0,61495.0,0.369133]
[1728035337744,0.02749639,61496.0,61495.0,0.377133]
[1728035337979,0.02749639,61496.0,61495.0,0.191519]
[1728035338200,0.352353,61496.0,61495.0,0.088119]
[1728035338443,0.163612,61496.0,61495.0,0.088119]
[1728035338665,0.353353,61496.0,61495.0,0.012819]
[1728035339109,0.352353,61496.0,61495.0,0.008819]
[1728035339326,0.353353,61496.0,61495.0,0.012819]
[1728035339549,0.35652973,61496.0,61495.0,0.004819]
[1728035339777,0.35652973,61496.0,61495.0,0.007819]
[1728035340007,0.35552973,61496.0,61495.0,0.000819]
[1728035340230,0.35652973,61496.0,61495.0,0.004819]
[1728035340452,0.35752973,61496.0,61495.0,0.011819]
[1728035340891,0.353353,61496.0,61495.0,0.011819]
[1728035341430,0.37885008,61496.0,61495.0,0.011819]
[1728035341781,0.353353,61496.0,61495.0,0.011819]
[1728035342762,0.164612,61496.0,61495.0,0.011819]
[1728035344446,0.19010964,61496.0,61495.0,0.011819]
[1728035344958,0.19010964,61496.0,61495.0,0.007819]
[1728035344959,0.18910964,61496.0,61495.0,0.007819]
[1728035345174,0.18910964,61496.0,61495.0,0.009819]
[1728035345601,0.18910964,61496.0,61495.0,0.000819]
[1728035345815,0.18810964,61496.0,61495.0,0.000819]
[1728035346025,0.38540964,61496.0,61495.0,0.002819]
[1728035346473,0.38540964,61496.0,61495.0,0.001819]
[1728035346678,0.38540964,61496.0,61495.0,0.002819]
[1728035347109,0.359912,61496.0,61495.0,0.002819]
[1728035350284,0.38541067,61496.0,61495.0,0.002819]
[1728035354070,0.83827225,61496.0,61495.0,0.002819]
[1728035354358,0.59483887,61496.0,61495.0,0.002819]
[1728035354827,0.59483887,61496.0,61495.0,0.001819]
[1728035355045,0.47091067,61496.0,61495.0,0.001819]
[1728035355473,0.39241067,61496.0,61495.0,0.001819]
[1728035355686,0.39241067,61496.0,61495.0,0.000819]
[1728035356127,0.39941067,61496.0,61495.0,0.001819]
[1728035357658,0.373912,61496.0,61495.0,0.001819]
[1728035358177,0.366912,61496.0,61495.0,0.001819]
[1728035358388,0.372912,61496.0,61495.0,0.001819]
[1728035358825,0.359912,61496.0,61495.0,0.000819]
[1728035359037,0.362912,61496.0,61495.0,0.000819]
[1728035360784,0.365912,61496.0,61495.0,0.000819]
[1728035360996,0.39141148,61496.0,61495.0,0.000819]
[1728035362079,0.38841148,61496.0,61495.0,0.000819]
[1728035362302,0.38541148,61496.0,61495.0,0.000819]
[1728035362734,0.38841148,61496.0,61495.0,0.000819]
[1728035363518,0.39141148,61496.0,61495.0,0.000819]
[1728035363752,0.51534601,61496.0,61495.0,0.000819]
[1728035367768,0.51734601,61496.0,61495.0,0.000819]
[1728035368002,0.49084653,61496.0,61495.0,0.000819]
[1728035368160,0.49184653,61496.0,61495.0,0.000819]
[1728035368312,0.48984653,61496.0,61495.0,0.000819]
[1728035368965,0.56664653,61496.0,61495.0,0.000819]
[1728035369442,0.56864653,61496.0,61495.0,0.000819]
[1728035371263,0.59414623,61496.0,61495.0,0.000819]
[1728035373351,0.59214623,61496.0,61495.0,0.000819]
[1728035378162,0.51534623,61496.0,61495.0,0.000819]
[1728035378390,0.48984653,61496.0,61495.0,0.000819]
[1728035380828,0.51534621,61496.0,61495.0,0.000819]
[1728035381269,0.61256291,61496.0,61495.0,0.000819]
[1728035382166,0.6113674,61496.0,61495.0,0.000819]
[1728035383233,0.48984653,61496.0,61495.0,0.000819]
[1728035385043,0.51534627,61496.0,61495.0,0.000819]
[1728035385249,0.63689708,61496.0,61495.0,0.000819]
[1728035385708,0.63889708,61496.0,61495.0,0.000819]
[1728035385927,0.63889643,61496.0,61495.0,0.000819]
[1728035386356,0.51734627,61496.0,61495.0,0.000819]
[1728035386574,0.51534627,61496.0,61495.0,0.000819]
[1728035387672,0.48984653,61496.0,61495.0,0.000819]
[1728035389676,0.365912,61496.0,61495.0,0.000819]
[1728035389900,0.365912,61496.0,61495.0,0.082619]
[1728035389901,0.168612,61496.0,61495.0,0.082619]
[1728035390792,0.165612,61496.0,61495.0,0.082619]
[1728035390998,0.19410944,61496.0,61495.0,0.082619]
[1728035391205,0.29410944,61496.0,61495.0,0.082619]
[1728035391449,0.29110944,61496.0,61495.0,0.082619]
[1728035391888,0.29110944,61496.0,61495.0,0.084619]
[1728035392100,0.265612,61496.0,61495.0,0.082619]
[1728035392315,0.263612,61496.0,61495.0,0.089619]
[1728035392540,0.263612,61496.0,61495.0,0.091619]
[1728035393092,0.263612,61496.0,61495.0,0.089619]
[1728035393312,0.264612,61496.0,61495.0,0.094619]
[1728035394844,0.29010942,61496.0,61495.0,0.094619]
[1728035397694,0.264612,61496.0,61495.0,0.094619]
[1728035400911,0.29010919,61496.0,61495.0,0.094619]
[1728035401558,0.38890919,61496.0,61495.0,0.012819]
[1728035402252,0.363412,61496.0,61495.0,0.012819]
[1728035404944,0.38890988,61496.0,61495.0,0.012819]
[1728035406541,0.363412,61496.0,61495.0,0.012819]
[1728035409989,0.38890986,61496.0,61495.0,0.012819]
[1728035411165,0.363412,61496.0,61495.0,0.012819]
[1728035414292,0.38890985,61496.0,61495.0,0.012819]
[1728035416452,0.51284438,61496.0,61495.0,0.012819]
[1728035419608,0.48734653,61496.0,61495.0,0.012819]
[1728035421001,0.51284443,61496.0,61495.0,0.012819]
[1728035421464,0.56316415,61496.0,61495.0,0.012819]
[1728035421690,0.64166415,61496.0,61495.0,0.012819]
[1728035421917,0.59134443,61496.0,61495.0,0.012819]
[1728035422449,0.59034443,61496.0,61495.0,0.007819]
[1728035422667,0.58934443,61496.0,61495.0,0.000819]
[1728035422898,0.58934443,61496.0,61495.0,0.001819]
[1728035423122,0.59234443,61496.0,61495.0,0.001819]
[1728035424561,0.59234443,61496.0,61495.0,0.000819]
[1728035424804,0.58934443,61496.0,61495.0,0.000819]
[1728035425104,0.59934443,61496.0,61495.0,0.000819]
[1728035425344,0.58934443,61496.0,61495.0,0.000819]
[1728035425581,0.59434443,61496.0,61495.0,0.000819]
[1728035425821,0.59934443,61496.0,61495.0,0.000819]
[1728035427944,0.57384653,61496.0,61495.0,0.000819]
[1728035430669,0.6709366,61496.0,61495.0,0.000819]
[1728035431109,0.69643648,61496.0,61495.0,0.000819]
[1728035431595,0.84403942,61496.0,61495.0,0.000819]
[1728035431818,0.84280264,61496.0,61495.0,0.000819]
[1728035432029,0.72144947,61496.0,61495.0,0.000819]
[1728035432257,0.84280224,61496.0,61495.0,0.000819]
[1728035432695,0.72144947,61496.0,61495.0,0.000819]
[1728035433842,0.57384653,61496.0,61495.0,0.000819]
[1728035434309,0.57584653,61496.0,61495.0,0.000819]
[1728035434539,0.1988,61494.0,61488.0,0.000819]
[1728035434775,0.48626453,61489.0,61488.0,0.000819]
[1728035436161,0.5117669,61489.0,61488.0,0.000819]
[1728035436631,0.48626453,61489.0,61488.0,0.000819]
[1728035437353,0.49326453,61489.0,61488.0,0.000819]
[1728035437600,0.50026453,61489.0,61488.0,0.000819]
[1728035439545,0.50026453,61489.0,61470.0,0.0001]
[1728035439546,0.262654,61480.0,61475.0,0.24343338]
[1728035439783,0.48188853,61480.0,61475.0,0.24343338]
[1728035440261,0.357954,61480.0,61477.0,0.00798425]
[1728035440495,0.38658853,61480.0,61477.0,0.00798425]
[1728035440727,0.38658853,61480.0,61479.0,0.001819]
[1728035440963,0.38658853,61480.0,61479.0,0.002819]
[1728035442851,0.41209413,61480.0,61479.0,0.002819]
[1728035443761,0.41630822,61480.0,61479.0,0.002819]
[1728035447444,0.29237369,61480.0,61479.0,0.002819]
[1728035447681,0.39080262,61480.0,61479.0,0.002819]
[1728035448834,0.39080262,61480.0,61479.0,0.084419]
[1728035448835,0.262654,61480.0,61479.0,0.084419]
[1728035449102,0.262654,61480.0,61479.0,0.175319]
[1728035449103,0.162654,61480.0,61479.0,0.175319]
[1728035449571,0.162654,61480.0,61479.0,0.18666078]
[1728035449797,0.162654,61480.0,61479.0,0.175319]
[1728035451050,0.18815644,61480.0,61479.0,0.175319]
[1728035451282,0.43158982,61480.0,61479.0,0.173319]
[1728035451512,0.43158982,61480.0,61479.0,0.083419]
[1728035451513,0.18815644,61480.0,61479.0,0.083419]
[1728035451739,0.18815644,61480.0,61479.0,0.000819]
[1728035451740,0.28815644,61480.0,61479.0,0.000819]
[1728035451961,0.41209097,61480.0,61479.0,0.000819]
[1728035452181,0.41309097,61480.0,61479.0,0.001819]
[1728035452397,0.41309097,61480.0,61479.0,0.000819]
[1728035452613,0.41309097,61480.0,61479.0,0.002819]
[1728035453047,0.41309097,61480.0,61479.0,0.000819]
[1728035453532,0.41509097,61480.0,61479.0,0.007819]
[1728035453984,0.41209097,61480.0,61479.0,0.000819]
[1728035454475,0.41309097,61480.0,61479.0,0.009819]
[1728035454699,0.41209097,61480.0,61479.0,0.002819]
[1728035455128,0.41209097,61480.0,61479.0,0.004819]
[1728035455392,0.41209097,61480.0,61479.0,0.002819]
[1728035456349,0.41209097,61480.0,61479.0,0.000819]
[1728035456831,0.41209097,61480.0,61479.0,0.002819]
[1728035457289,0.38658853,61480.0,61479.0,0.000819]
[1728035457745,0.38658853,61480.0,61479.0,0.001819]
[1728035457980,0.38658853,61480.0,61479.0,0.000819]
[1728035458435,0.38858853,61480.0,61479.0,0.000819]
[1728035459636,0.38758853,61480.0,61479.0,0.000819]
[1728035460341,0.41309292,61480.0,61479.0,0.000819]
[1728035460607,0.41209292,61480.0,61479.0,0.000819]
[1728035460836,0.4162447,61480.0,61479.0,0.000819]
[1728035462555,0.4182447,61480.0,61479.0,0.000819]
[1728035463268,0.29431017,61480.0,61479.0,0.000819]
[1728035463501,0.29431017,61480.0,61479.0,0.079019]
[1728035464178,0.29631017,61480.0,61479.0,0.079019]
[1728035464427,0.29231017,61480.0,61479.0,0.079019]
[1728035464653,0.29631017,61480.0,61479.0,0.079019]
[1728035465127,0.29431017,61480.0,61479.0,0.079019]
[1728035465319,0.29431017,61480.0,61479.0,0.081019]
[1728035465822,0.29231017,61480.0,61479.0,0.081019]
[1728035466290,0.29231017,61480.0,61479.0,0.085019]
[1728035466515,0.29231017,61480.0,61479.0,0.081019]
[1728035466991,0.29231017,61480.0,61479.0,0.083019]
[1728035472289,0.29231017,61480.0,61479.0,0.004819]
[1728035473220,0.29231017,61480.0,61479.0,0.002819]
[1728035473463,0.26680578,61480.0,61479.0,0.002819]
[1728035473957,0.26680578,61480.0,61479.0,0.004819]
[1728035476056,0.26680578,61480.0,61479.0,0.002819]
[1728035476302,0.29230991,61480.0,61479.0,0.001819]
[1728035476601,0.29230991,61480.0,61479.0,0.002819]
[1728035482110,0.29230991,61480.0,61479.0,0.001819]
[1728035482352,0.29230991,61480.0,61479.0,0.000819]
[1728035482594,0.29230991,61480.0,61479.0,0.007819]
[1728035482845,0.29230991,61480.0,61479.0,0.004819]
[1728035483308,0.29230991,61480.0,61479.0,0.001819]
[1728035483792,0.29230991,61480.0,61479.0,0.000819]
[1728035484485,0.29230991,61480.0,61479.0,0.003819]
[1728035485250,0.29230991,61480.0,61479.0,0.007819]
[1728035485981,0.29230991,61480.0,61479.0,0.004819]
[1728035486225,0.41624444,61480.0,61479.0,0.000819]
[1728035486465,0.39474031,61480.0,61479.0,0.000819]
[1728035486702,0.39274031,61480.0,61479.0,0.000819]
[1728035486970,0.39174031,61480.0,61479.0,0.000819]
[1728035487206,0.39274031,61480.0,61479.0,0.000819]
[1728035488363,0.39174031,61480.0,61479.0,0.000819]
[1728035488591,0.39274031,61480.0,61479.0,0.000819]
[1728035489838,0.41824466,61480.0,61479.0,0.000819]
[1728035490558,0.50874466,61480.0,61479.0,0.000819]
[1728035491036,0.48324031,61480.0,61479.0,0.000819]
[1728035492997,0.48224031,61480.0,61479.0,0.000819]
[1728035493242,0.48224031,61480.0,61479.0,0.001819]
[1728035493484,0.48124031,61480.0,61479.0,0.001819]
[1728035493723,0.48124031,61480.0,61479.0,0.000819]
[1728035493963,0.50674475,61480.0,61479.0,0.001819]
[1728035494196,0.50774475,61480.0,61479.0,0.001819]
[1728035495139,0.50774475,61480.0,61479.0,0.000819]
[1728035495376,0.50874475,61480.0,61479.0,0.000819]
[1728035495874,0.58964475,61480.0,61479.0,0.000819]
[1728035496103,0.68672054,61480.0,61479.0,0.000819]
[1728035496575,0.68572054,61480.0,61479.0,0.000819]
[1728035496817,0.68672054,61480.0,61479.0,0.000819]
[1728035497059,0.58964475,61480.0,61479.0,0.000819]
[1728035497354,0.58864475,61480.0,61479.0,0.000819]
[1728035497831,0.58764475,61480.0,61479.0,0.000819]
[1728035498549,0.58864475,61480.0,61479.0,0.000819]
[1728035499293,0.50874475,61480.0,61479.0,0.000819]
[1728035500539,0.50674475,61480.0,61479.0,0.000819]
[1728035500788,0.50774475,61480.0,61479.0,0.000819]
[1728035501909,0.50874475,61480.0,61479.0,0.000819]
[1728035502707,0.50774475,61480.0,61479.0,0.000819]
[1728035502932,0.50674475,61480.0,61479.0,0.001819]
[1728035503372,0.50674475,61480.0,61479.0,0.002819]
[1728035505183,0.89577011,61480.0,61479.0,0.002819]
[1728035505446,0.5284022,61480.0,61479.0,0.002819]
[1728035505680,0.58964475,61480.0,61479.0,0.002819]
[1728035506131,0.56414031,61480.0,61479.0,0.002819]
[1728035506594,0.56614031,61480.0,61479.0,0.002819]
[1728035506810,0.68746476,61480.0,61479.0,0.002819]
[1728035507946,0.56614031,61480.0,61479.0,0.002819]
[1728035508600,0.68746172,61480.0,61479.0,0.002819]
[1728035508851,0.71096849,61480.0,61479.0,0.002819]
[1728035510221,0.7110307,61480.0,61479.0,0.002819]
[1728035510496,0.71104103,61480.0,61479.0,0.002819]
[1728035511631,0.58964708,61480.0,61479.0,0.001819]
[1728035511846,0.59864708,61480.0,61479.0,0.001819]
[1728035512284,0.59864708,61480.0,61479.0,0.000819]
[1728035512513,0.61064708,61480.0,61479.0,0.000819]
[1728035512786,0.61564708,61480.0,61479.0,0.000819]
[1728035513256,0.58964708,61480.0,61479.0,0.000819]
[1728035513498,0.59864708,61480.0,61479.0,0.000819]
[1728035513663,0.70672032,61480.0,61479.0,0.000819]
[1728035513900,0.69772032,61480.0,61479.0,0.000819]
[1728035514474,0.70272032,61480.0,61479.0,0.000819]
[1728035514680,0.70271408,61480.0,61479.0,0.000819]
[1728035514937,0.69171408,61480.0,61479.0,0.000819]
[1728035515116,0.69671408,61480.0,61479.0,0.000819]
[1728035515740,0.69171408,61480.0,61479.0,0.000819]
[1728035515950,0.70071408,61480.0,61479.0,0.000819]
[1728035516631,0.69171408,61480.0,61479.0,0.000819]
[1728035516849,0.69671408,61480.0,61479.0,0.000819]
[1728035518046,0.67120731,61480.0,61479.0,0.000819]
[1728035519220,0.57414031,61480.0,61479.0,0.000819]
[1728035521383,0.59964732,61480.0,61479.0,0.000819]
[1728035522347,0.74670434,61480.0,61479.0,0.000819]
[1728035522794,0.57414031,61480.0,61479.0,0.000819]
[1728035525674,0.59964773,61480.0,61479.0,0.000819]
[1728035527631,0.69668411,61480.0,61479.0,0.000819]
[1728035527845,0.7209432,61480.0,61479.0,0.000819]
[1728035528595,0.64996745,61480.0,61479.0,0.000819]
[1728035528818,0.64496745,61480.0,61479.0,0.000819]
[1728035529046,0.65196745,61480.0,61479.0,0.000819]
[1728035529275,0.77322475,61480.0,61479.0,0.000819]
[1728035529485,0.64696745,61480.0,61479.0,0.000819]
[1728035529946,0.65196745,61480.0,61479.0,0.000819]
[1728035530156,0.77322439,61480.0,61479.0,0.000819]
[1728035530586,0.440773,61473.0,61472.0,0.00814528]
[1728035530819,0.56470753,61473.0,61472.0,0.00814528]
[1728035531269,0.56470753,61473.0,61461.0,0.0002]
[1728035531270,0.162691,61466.0,61465.0,0.000819]
[1728035531528,0.162691,61466.0,61461.0,0.0002]
[1728035531530,0.262702,61462.0,61461.0,0.0002]
[1728035531750,0.38663653,61462.0,61461.0,0.0002]
[1728035531985,0.262702,61462.0,61461.0,0.0008]
[1728035533081,0.266702,61462.0,61461.0,0.0008]
[1728035533487,0.262702,61462.0,61461.0,0.0008]
[1728035534122,0.38663653,61462.0,61461.0,0.0008]
[1728035534372,0.41214875,61462.0,61461.0,0.0008]
[1728035534787,0.41214875,61462.0,61461.0,0.0018]
[1728035535443,0.41214875,61462.0,61461.0,0.0008]
[1728035536608,0.38663653,61462.0,61461.0,0.0008]
[1728035537269,0.38646331,61462.0,61461.0,0.0008]
[1728035537518,0.38646331,61462.0,61461.0,0.001619]
[1728035537769,0.26252878,61462.0,61461.0,0.002619]
[1728035538013,0.26252878,61462.0,61461.0,0.003619]
[1728035538719,0.26252878,61462.0,61461.0,0.002619]
[1728035538955,0.26252878,61462.0,61461.0,0.001619]
[1728035539666,0.26252878,61462.0,61461.0,0.002619]
[1728035539911,0.28804115,61462.0,61461.0,0.002619]
[1728035541130,0.26252878,61462.0,61461.0,0.002619]
[1728035544441,0.45674192,61462.0,61461.0,0.002619]
[1728035544705,0.50773302,61462.0,61461.0,0.002619]
[1728035544957,0.63130421,61462.0,61461.0,0.002619]
[1728035545221,0.50773302,61462.0,61461.0,0.002619]
[1728035545624,0.50773302,61462.0,61461.0,0.001619]
[1728035545872,0.50873302,61462.0,61461.0,0.001619]
[1728035546107,0.45774192,61462.0,61461.0,0.001619]
[1728035546800,0.45874192,61462.0,61461.0,0.001619]
[1728035547303,0.45774192,61462.0,61461.0,0.001619]
[1728035547539,0.45874192,61462.0,61461.0,0.001619]
[1728035547760,0.43322878,61462.0,61461.0,0.001619]
[1728035548220,0.43522878,61462.0,61461.0,0.001619]
[1728035548470,0.53625606,61462.0,61461.0,0.001619]
[1728035548709,0.58524716,61462.0,61461.0,0.001619]
[1728035548941,0.43322878,61462.0,61461.0,0.001619]
[1728035549443,0.43686678,61462.0,61461.0,0.001619]
[1728035550168,0.43486678,61462.0,61461.0,0.001619]
[1728035551105,0.46038222,61462.0,61461.0,0.001619]
[1728035551328,0.59620429,61462.0,61461.0,0.001619]
[1728035552049,0.74406384,61462.0,61461.0,0.001619]
[1728035552291,0.64719539,61462.0,61461.0,0.001619]
[1728035552519,0.74406384,61462.0,61461.0,0.001619]
[1728035553435,0.51337332,61462.0,61461.0,0.001619]
[1728035553746,0.46038222,61462.0,61461.0,0.001619]
[1728035557032,0.46238222,61462.0,61461.0,0.001619]
[1728035557942,0.43686678,61462.0,61461.0,0.001619]
[1728035558645,0.35926678,61462.0,61461.0,0.001619]
[1728035561396,0.38478286,61462.0,61461.0,0.001619]
[1728035565226,0.19168286,61462.0,61461.0,0.001619]
[1728035565468,0.19168286,61462.0,61461.0,0.078819]
[1728035566145,0.18968286,61462.0,61461.0,0.078819]
[1728035566426,0.29068286,61462.0,61461.0,0.078819]
[1728035566896,0.28968286,61462.0,61461.0,0.078819]
[1728035567112,0.26516678,61462.0,61461.0,0.080819]
[1728035568290,0.26516678,61462.0,61461.0,0.079819]
[1728035568531,0.002638,61462.0,61461.0,0.079819]
[1728035568772,0.002638,61462.0,61461.0,0.179619]
[1728035569006,0.003638,61462.0,61461.0,0.35184195]
[1728035569227,0.001638,61462.0,61461.0,0.18813795]
[1728035569458,0.003638,61462.0,61461.0,0.19013795]
[1728035569902,0.003638,61462.0,61461.0,0.35284195]
[1728035570122,0.003638,61462.0,61461.0,0.19013795]
[1728035570363,0.001638,61462.0,61461.0,0.18813795]
[1728035570612,0.02814694,61462.0,61461.0,0.18913795]
[1728035570848,0.19084894,61462.0,61461.0,0.18913795]
[1728035571518,0.19184894,61462.0,61461.0,0.19013795]
[1728035571964,0.19084894,61462.0,61461.0,0.18913795]
[1728035572435,0.19184894,61462.0,61461.0,0.19013795]
[1728035577021,0.19184894,61462.0,61461.0,0.09033795]
[1728035589869,0.19184894,61462.0,61461.0,0.09172002]
[1728035590332,0.19184894,61462.0,61461.0,0.01452002]
[1728035591459,0.19084894,61462.0,61461.0,0.01352002]
[1728035591705,0.19084894,61462.0,61461.0,0.01452002]
[1728035592189,0.19084894,61462.0,61461.0,0.01252002]
[1728035592190,0.18984894,61462.0,61461.0,0.01252002]
[1728035592411,0.19084894,61462.0,61461.0,0.01452002]
[1728035592631,0.18984894,61462.0,61461.0,0.01352002]
[1728035593310,0.18984894,61462.0,61461.0,0.01452002]
[1728035596182,0.18984894,61462.0,61461.0,0.01252002]
[1728035596397,0.18984894,61462.0,61461.0,0.002619]
[1728035596836,0.18984894,61462.0,61461.0,0.001619]
[1728035597074,0.18984894,61462.0,61461.0,0.002619]
[1728035597293,0.16434,61462.0,61461.0,0.002619]
[1728035598658,0.16434,61462.0,61461.0,0.003619]
[1728035598877,0.16434,61462.0,61461.0,0.002619]
[1728035599815,0.16534,61462.0,61461.0,0.003619]
[1728035600497,0.1908512,61462.0,61461.0,0.003619]
[1728035614146,0.1898512,61462.0,61461.0,0.001619]
[1728035614345,0.1898512,61462.0,61461.0,0.003619]
[1728035614673,0.1898512,61462.0,61461.0,0.002619]
[1728035615111,0.1898512,61462.0,61461.0,0.003619]
[1728035616206,0.31378573,61462.0,61461.0,0.003619]
[1728035618592,0.31378573,61462.0,61461.0,0.002619]
[1728035619064,0.31478573,61462.0,61461.0,0.003619]
[1728035623929,0.1908512,61462.0,61461.0,0.003619]
[1728035625875,0.31478573,61462.0,61461.0,0.003619]
[1728035626572,0.1908512,61462.0,61461.0,0.003619]
[1728035627660,0.31478573,61462.0,61461.0,0.003619]
[1728035630064,0.41208573,61462.0,61461.0,0.003619]
[1728035630359,0.51208573,61462.0,61461.0,0.003619]
[1728035631025,0.51208573,61462.0,61461.0,0.002619]
[1728035631245,0.48657453,61462.0,61461.0,0.003619]
[1728035631469,0.48557453,61462.0,61461.0,0.002619]
[1728035631663,0.48557453,61462.0,61461.0,0.001619]
[1728035631910,0.48557453,61462.0,61461.0,0.002619]
[1728035632129,0.48557453,61462.0,61461.0,0.001619]
[1728035632362,0.48557453,61462.0,61461.0,0.002619]
[1728035632578,0.56057453,61462.0,61461.0,0.002619]
[1728035633007,0.56057453,61462.0,61461.0,0.003619]
[1728035633215,0.56057453,61462.0,61461.0,0.002619]
[1728035633459,0.56057453,61462.0,61461.0,0.001619]
[1728035633924,0.56657453,61462.0,61461.0,0.001619]
[1728035634412,0.58708756,61462.0,61461.0,0.001619]
[1728035634634,0.59508756,61462.0,61461.0,0.001619]
[1728035634836,0.59408756,61462.0,61461.0,0.001619]
[1728035635054,0.60008756,61462.0,61461.0,0.001619]
[1728035635271,0.59408756,61462.0,61461.0,0.001619]
[1728035635710,0.59808756,61462.0,61461.0,0.001619]
[1728035635925,0.59008756,61462.0,61461.0,0.001619]